Cogmind - Beta 11.1 @@@ ROGUE MODE // 2022.04.28 @ 22:55:50 Player: AnthonyDPS 2004 Result: Destroyed by S-27 Virus with Autogun Performance ------------- Evolutions (3) 1500 Regions Visited (6) 1200 Robots Destroyed (11) 55 Value Destroyed (223) 223 Prototype IDs (7) 140 Alien Tech Used (0) 0 Bonus (0) 0 TOTAL SCORE: 3118 Bonus ------- None Cogmind --------- Core Integrity 0/700 Matter 194/300 Energy 98/100 System Corruption 0% Temperature Cool (0) Movement Core (50) Location -7/Lower Caves Parts ------- > --- POWER (1) -------- (None) > --- PROPULSION (3) --- (None) > --- UTILITY (7) ------ Signal Interpreter System Shield Makeshift System Shield > --- WEAPON (2) ------- (None) > --- INVENTORY (5) ---- Carbon-fiber Leg High-capacity Matter Pod (68) Heart of Steel Peak State ------------ > --- POWER ------------ (None) > --- PROPULSION ------- Hover Unit Gravmag System Gravmag System > --- UTILITY ---------- Improved Heat Sink Structural Scanner Signal Interpreter System Shield Heart of Steel > --- WEAPON ----------- Improved Medium Laser > --- INVENTORY -------- Carbon-fiber Leg High-capacity Matter Pod [Rating: 44] Favorites ----------- Power Light Ion Engine Engine Light Ion Engine Power Core Light Nuclear Core Propulsion Hover Unit Leg Aluminum Leg Wheel Wheel Hover Unit Hover Unit Flight Unit Cesium-ion Thruster Utility Signal Interpreter Device Structural Scanner Storage Small Storage Unit Processor Signal Interpreter Hackware System Shield Weapon Light Assault Rifle Energy Gun EM Pulse Gun Energy Cannon EM Pulse Cannon Ballistic Gun Light Assault Rifle Build | -11 -10 -9 -8 -7 -7 -7 ------- Run | Scr Mat Mat Mat Fac Low Low Slots Evolved 6 | . . 2 2 2 . . Power . | . . . . . . . Propulsion 1 | . . 1 . . . . Utility 5 | . . 1 2 2 . . Weapon . | . . . . . . . Parts Attached 38 | 4 8 4 15 4 2 1 Power 2 | 1 . . 1 . . . Engine 1 | 1 . . . . . . Core 1 | . . . 1 . . . Reactor . | . . . . . . . Propulsion 16 | 2 2 3 5 3 1 . Treads . | . . . . . . . Leg 2 | . . 2 . . . . Wheel 2 | 2 . . . . . . Hover 11 | . 2 1 4 3 1 . Flight 1 | . . . 1 . . . Utility 11 | 1 2 1 4 1 1 1 Device 5 | . . 1 2 1 1 . Storage 2 | 1 . . 1 . . . Processor 2 | . 2 . . . . . Hackware 2 | . . . 1 . . 1 Protection . | . . . . . . . Artifact . | . . . . . . . Weapon 9 | . 4 . 5 . . . Energy Gun 5 | . 2 . 3 . . . Energy Cannon 2 | . . . 2 . . . Ballistic Gun 2 | . 2 . . . . . Ballistic Cannon . | . . . . . . . Launcher . | . . . . . . . Special Weapon . | . . . . . . . Impact Weapon . | . . . . . . . Slashing Weapon . | . . . . . . . Piercing Weapon . | . . . . . . . Special Melee Weapon . | . . . . . . . Unidentified Prototypes 4 | . . . 3 . 1 . Corrupted Parts 2 | . 2 . . . . . System Corruption 12 | . 12 . . . . . Parts Lost 20 | . . 8 4 2 . 6 Power 2 | . . 1 1 . . . Propulsion 12 | . . 5 3 1 . 3 Utility 3 | . . . . 1 . 2 Weapon 3 | . . 2 . . . 1 Highest Loss Streak 7 | . . 7 4 2 . 6 To Critical Strikes . | . . . . . . . Average Slot Usage (%) 75 | . 94 84 69 64 62 28 Engine 5 | . 14 9 . . . . Core 2 | . . . 7 . . . Hover 21 | . 23 16 24 19 23 . Device 12 | . . 11 18 22 16 10 Storage 8 | . 14 11 7 . . . Processor 9 | . 11 11 9 7 7 7 Hackware 1 | . . . . 7 7 9 Energy Gun 6 | . 13 9 1 7 7 . Ballistic Gun 4 | . 13 9 . . . . Naked Turns . | . . . . . . . Heaviest Build 18 | 8 11 12 18 7 15 15 Greatest Support 27 | 26 26 20 18 27 18 18 Greatest Overweight (x) 3 | . 1 1 2 1 . 3 Average Overweight (x) . | . . . . . . . Largest Inventory Capacity 10 | 8 8 8 10 5 5 5 Average Capacity 7 | 6 8 8 9 5 5 5 Most Carried 8 | 8 8 8 7 3 2 5 Average Carried 5 | 4 7 7 5 2 2 3 Final Capacity 8 | 8 8 8 5 5 5 5 Final Carried 8 | 8 8 8 3 3 2 5 Class Distribution -------------------- 61% | Mutant 38% | Infiltrator-Mutant Dominant Class ---------------- Mutant | -10/Materials Mutant | -9/Materials Infiltrator-Mutant | -8/Materials Infiltrator-Mutant | -7/Factory Mutant | -7/Lower Caves Mutant | -7/Lower Caves Resources | -11 -10 -9 -8 -7 -7 -7 ----------- Run | Scr Mat Mat Mat Fac Low Low Matter Collected 620 | 240 125 . . . 241 14 Remotely . | . . . . . . . Salvage Created 602 | . 330 89 . . 183 . Parts 36 | . 28 5 . . 3 . Haulers Intercepted . | . . . . . . . Recyclers Shooed . | . . . . . . . Parts Field Recycled . | . . . . . . . Retrieved Matter . | . . . . . . . Parts Self-Destructed 3 | . . . . . . 3 Prevented . | . . . . . . . Kills | -11 -10 -9 -8 -7 -7 -7 ------- Run | Scr Mat Mat Mat Fac Low Low Combat Hostiles Destroyed 7 | . 5 2 . . . . Guns 5 | . 4 1 . . . . AOE 2 | . 1 1 . . . . Classes Destroyed 5 | . 4 . . . 1 . Recycler 2 | . 2 . . . . . Watcher 2 | . 2 . . . . . Swarmer 3 | . 3 . . . . . Grunt 4 | . 2 2 . . . . Decomposer 1 | . . . . . 1 . Packrat 2 | . . . . . 2 . Best Kill Streak 5 | . 5 1 . . . . Combat Bots Only 3 | . 3 1 . . . . Max Kills in Single Turn 1 | . 1 1 . . 1 . Gunslinging . | . . . . . . . Exploded 1 | . 1 1 . . . . Melee . | . . . . . . . Uniques/NPCs Destroyed . | . . . . . . . Combat | -11 -10 -9 -8 -7 -7 -7 -------- Run | Scr Mat Mat Mat Fac Low Low Damage Taken 2255 | . 160 702 291 335 41 726 Core 1063 | . 42 217 95 115 30 564 Absorbed by Shields . | . . . . . . . Core Remaining (%) 77 | 100 83 45 82 . . . Volleys Fired 59 | . 34 8 2 . 15 . Largest 2 | . 2 2 1 . 1 . Hottest 60 | . 60 60 56 . 56 . Shots Fired 99 | . 66 16 2 . 15 . Gun 99 | . 66 16 2 . 15 . Cannon . | . . . . . . . Launcher . | . . . . . . . Special . | . . . . . . . Kinetic 40 | . 32 8 . . . . Thermal 17 | . . . 2 . 15 . Explosive . | . . . . . . . Electromagnetic 42 | . 34 8 . . . . Robot Hit Streak 5 | . 5 5 1 . 3 . Robot Miss Streak 7 | . 7 2 1 . 2 . Penetration Max . | . . . . . . . Secondary Targets . | . . . . . . . Shots Hit Robots 55 | . 33 12 1 . 9 . Core Hits 28 | . 18 4 . . 6 . Critical Kills . | . . . . . . . Critical Parts Destroyed . | . . . . . . . Critical Strikes . | . . . . . . . Melee Attacks . | . . . . . . . Impact . | . . . . . . . Slashing . | . . . . . . . Piercing . | . . . . . . . Sneak Attacks . | . . . . . . . Combat Hostiles . | . . . . . . . Follow-up Attacks . | . . . . . . . Damage Inflicted 771 | . 431 183 16 2 139 . Guns 638 | . 362 121 16 . 139 . Cannons . | . . . . . . . Explosions 131 | . 69 62 . . . . Melee . | . . . . . . . Ramming 2 | . . . . 2 . . Kinetic 189 | . 146 43 . . . . Thermal 286 | . 69 62 16 . 139 . Explosive . | . . . . . . . Electromagnetic 294 | . 216 78 . . . . Impact . | . . . . . . . Slashing . | . . . . . . . Piercing . | . . . . . . . Highest Corruption 12 | . 12 . . . . . Average Corruption 11 | . 11 . . . . . Corruption Purged . | . . . . . . . Corruption Blocked . | . . . . . . . Effects 14 | . 14 . . . . . Message Errors 5 | . 5 . . . . . Matter Fused 2 | . 2 . . . . . Heat Flow Errors 1 | . 1 . . . . . Energy Discharges 2 | . 2 . . . . . Data Loss (minor) 1 | . 1 . . . . . Data Loss (major) 2 | . 2 . . . . . Alerts 1 | . 1 . . . . . Overload Shots . | . . . . . . . Overflow Damage . | . . . . . . . Projectiles . | . . . . . . . Explosions . | . . . . . . . Melee . | . . . . . . . Knockbacks . | . . . . . . . Impact . | . . . . . . . Kinetic . | . . . . . . . Secondary . | . . . . . . . Self-Inflicted Damage 72 | . 36 35 . 1 . . Shots 2 | . 1 1 . . . . Rammed 1 | . . . . 1 . . Targets Rammed 1 | . . . . 1 . . Kicked . | . . . . . . . Crushed . | . . . . . . . Highest Temperature 181 | . 181 96 24 . . . Average Temperature 37 | . 38 38 9 . . . Received Heat Transfer 672 | . 33 390 207 30 12 . Siege Activations . | . . . . . . . Robots Corrupted . | . . . . . . . Combat Hostiles . | . . . . . . . Parts Fried . | . . . . . . . Impact Corruptions . | . . . . . . . Robots Melted . | . . . . . . . Combat Hostiles . | . . . . . . . Parts Melted . | . . . . . . . Heat Transferred 533 | . 100 100 37 . 296 . Parts Sabotaged . | . . . . . . . Parts Stolen . | . . . . . . . Parts Stripped . | . . . . . . . Power Chain Reactions 2 | . 1 1 . . . . Missiles Intercepted . | . . . . . . . Alert | -11 -10 -9 -8 -7 -7 -7 ------- Run | Scr Mat Mat Mat Fac Low Low Peak Influence 286 | . 286 277 155 150 . . Initial 87 | . . 48 87 70 . . Average 102 | . 151 160 54 90 . . Maximum Alert Level 1 | . 1 1 . . . . Low Security (%) 85 | 100 80 52 100 100 . . Level 1 14 | . 19 47 . . . . Level 2 . | . . . . . . . Level 3 . | . . . . . . . Level 4 . | . . . . . . . Level 5 . | . . . . . . . High Security . | . . . . . . . Max Security . | . . . . . . . Squads Dispatched 3 | . 1 1 1 . . . Investigation 1 | . . 1 . . . . Extermination . | . . . . . . . Reinforcement 2 | . 1 . 1 . . . Assault . | . . . . . . . Garrison . | . . . . . . . Intercept . | . . . . . . . Searches Triggered . | . . . . . . . Construction Impeded . | . . . . . . . Haulers Reinforced . | . . . . . . . Active Scanning Responses . | . . . . . . . Cargo Convoy Interrupts . | . . . . . . . Stealth | -11 -10 -9 -8 -7 -7 -7 --------- Run | Scr Mat Mat Mat Fac Low Low Distress Signals 1 | . . 1 . . . . Communications Jammed . | . . . . . . . Distress Signals . | . . . . . . . Times Spotted 61 | . 14 14 13 9 3 8 Peak Tracking Total 7 | . 4 6 6 5 7 7 Tactical Retreats 12 | . 1 3 5 2 . 1 Traps | -11 -10 -9 -8 -7 -7 -7 ------- Run | Scr Mat Mat Mat Fac Low Low Traps Triggered . | . . . . . . . Indirectly . | . . . . . . . Trap Hack Attempts . | . . . . . . . Triggered . | . . . . . . . Disarmed 6 | . 6 . . . . . Reprogrammed . | . . . . . . . Reused . | . . . . . . . Traps Extracted . | . . . . . . . Installed . | . . . . . . . Triggered . | . . . . . . . Machines | -11 -10 -9 -8 -7 -7 -7 ---------- Run | Scr Mat Mat Mat Fac Low Low Machines Disabled . | . . . . . . . Max in Single Turn . | . . . . . . . Machines Sabotaged . | . . . . . . . Garrisons Compromised . | . . . . . . . Overloaded Fab Kills . | . . . . . . . Hacking | -11 -10 -9 -8 -7 -7 -7 --------- Run | Scr Mat Mat Mat Fac Low Low Machines Accessed 11 | . 4 3 1 2 1 . Terminals 5 | . 2 2 1 . . . Fabricators . | . . . . . . . Repair Stations . | . . . . . . . Recycling Units 3 | . 2 1 . . . . Scanalyzers 2 | . . . . 2 . . Garrison Access . | . . . . . . . Total Hacks 29 | . 10 9 3 6 1 . Successful 15 | . 6 2 2 4 1 . Failed 14 | . 4 7 1 2 . . Catastrophic . | . . . . . . . Database Lockouts . | . . . . . . . Manual . | . . . . . . . Terminals 18 | . 7 8 3 . . . Fabricators . | . . . . . . . Repair Stations . | . . . . . . . Recycling Units 4 | . 3 1 . . . . Scanalyzers 6 | . . . . 6 . . Garrison Access . | . . . . . . . Terminal Hacks 8 | . 4 1 2 . 1 . Prototype ID Bank 1 | . . 1 . . . . Open Door 1 | . . . . . 1 . Emergency Access Points 2 | . 1 . 1 . . . Unreport Threat 1 | . . . 1 . . . Locate Traps 2 | . 2 . . . . . Disarm Traps 1 | . 1 . . . . . Fabricator Hacks . | . . . . . . . Repair Station Hacks . | . . . . . . . Recycling Unit Hacks 3 | . 2 1 . . . . Report Inventory 3 | . 2 1 . . . . Scanalyzer 4 | . . . . 4 . . Insert Component 2 | . . . . 2 . . Analyze 2 | . . . . 2 . . Garrison Access Hacks . | . . . . . . . Unauthorized Hacks . | . . . . . . . Terminals . | . . . . . . . Fabricators . | . . . . . . . Repair Stations . | . . . . . . . Recycling Units . | . . . . . . . Scanalyzers . | . . . . . . . Garrison Access . | . . . . . . . Data Cores Recovered . | . . . . . . . Used . | . . . . . . . Hacking Detections 9 | . 3 3 1 2 . . Full Trace Events 1 | . . 1 . . . . Feedback Events . | . . . . . . . Feedback Blocked . | . . . . . . . Robot Schematics Acquired . | . . . . . . . Robots Built . | . . . . . . . Authchips . | . . . . . . . Time . | . . . . . . . Total Robot Build Rating . | . . . . . . . Part Schematics Acquired 2 | . . . . 2 . . Parts Built . | . . . . . . . Authchips . | . . . . . . . Time . | . . . . . . . Total Part Build Rating . | . . . . . . . Parts Repaired . | . . . . . . . Time . | . . . . . . . Parts Recycled . | . . . . . . . Recycled Matter . | . . . . . . . Retrieved Matter . | . . . . . . . Retrieved Components . | . . . . . . . Parts Scanalyzed 2 | . . . . 2 . . Part Schematics Acquired 2 | . . . . 2 . . Parts Damaged . | . . . . . . . Bothacking | -11 -10 -9 -8 -7 -7 -7 ------------ Run | Scr Mat Mat Mat Fac Low Low Used RIF Installer . | . . . . . . . Robots Hacked . | . . . . . . . Non-combat . | . . . . . . . Combat . | . . . . . . . Robot Hacks Applied . | . . . . . . . Relay Couplers Released . | . . . . . . . Fabnet Peak Effective % . | . . . . . . . Robots Rewired . | . . . . . . . Allies Hacked . | . . . . . . . Hacks Repelled . | . . . . . . . Allies | -11 -10 -9 -8 -7 -7 -7 -------- Run | Scr Mat Mat Mat Fac Low Low Total Allies 1 | . . . . . . 1 Largest Group 1 | . . . . . . 1 Highest-Rated Group 135 | . . . . . . 135 Highest-Rated Ally 135 | . . . . . . 135 Total Orders . | . . . . . . . Ally Attacks . | . . . . . . . Total Damage . | . . . . . . . Kills . | . . . . . . . Allies Corrupted . | . . . . . . . Allies Melted . | . . . . . . . Intel | -11 -10 -9 -8 -7 -7 -7 ------- Run | Scr Mat Mat Mat Fac Low Low Robot Analysis Total . | . . . . . . . Derelict Logs Recovered . | . . . . . . . Drone Launches . | . . . . . . . Drone Recoveries . | . . . . . . . Exploration | -11 -10 -9 -8 -7 -7 -7 ------------- Run | Scr Mat Mat Mat Fac Low Low Turns Passed 2053 | 72 493 316 707 72 320 73 Spaces Moved 2331 | 67 603 353 603 109 469 127 Core 136 | 4 . 11 . . . 121 Treads . | . . . . . . . Legs 68 | . . 68 . . . . Wheels 83 | 63 20 . . . . . Hover 1938 | . 583 274 497 109 469 6 Flight 106 | . . . 106 . . . Fastest Speed 35 | 50 56 56 35 52 56 50 Average Speed 58 | 87 58 70 50 60 56 55 Slowest Speed 200 | 90 120 120 180 120 56 200 Overloaded Moves . | . . . . . . . Propulsion Burnouts . | . . . . . . . Robots Hopped 6 | . . . 6 . . . Cave-ins Triggered . | . . . . . . . Exploration Rate (%) 31 | 4 67 31 24 5 66 21 Regions Visited 6 Branch Regions 2 Pre-discovered Areas . | . . . . . . . Known Exits Taken 5 | . 1 1 1 1 1 . Unknown Exits Taken 1 | 1 . . . . . . Scrap Searched 1 | . . . . . . 1 Spaces Dug . | . . . . . . . Terrain Destroyed 6 | . 4 2 . . . . Melee . | . . . . . . . Projectile . | . . . . . . . AOE 6 | . 4 2 . . . . Terrain Rammed . | . . . . . . . Walls Destroyed . | . . . . . . . Machines Disabled . | . . . . . . . Actions | -11 -10 -9 -8 -7 -7 -7 --------- Run | Scr Mat Mat Mat Fac Low Low Total 2920 | 78 685 408 996 113 510 130 Wait 462 | . 30 35 372 . 25 . Move 2314 | 66 602 352 590 109 468 127 Hop 6 | . . . 6 . . . Pick Up 23 | 8 5 6 3 . . 1 Fast Attach 18 | 4 4 1 5 2 1 1 Attach 18 | . 3 3 10 1 1 . Detach 2 | . . . 2 . . . Swap 2 | . 1 . . 1 . . Drop 16 | . 6 3 6 . . 1 Fire 59 | . 34 8 2 . 15 . Melee . | . . . . . . . Ram . | . . . . . . . Kick . | . . . . . . . Crush . | . . . . . . . Escape Stasis . | . . . . . . . Rewire . | . . . . . . . Trap . | . . . . . . . Miscellaneous . | . . . . . . . Route ------- -11/Scrapyard -10/Materials -9/Materials -8/Materials -7/Factory -7/Lower Caves -7/Lower Caves History --------- Turn | Location | Event 13 | -11/Scrapyard | Discovered new exit (range 16) 73 | -11/Scrapyard | Entered Materials 179 | -10/Materials | System corruption reached 10% 313 | -10/Materials | Build established: Mutant 559 | -10/Materials | Discovered new exit (range 14) 565 | -10/Materials | Identified exit to Materials 566 | -10/Materials | Entered another Materials area 566 | -9/Materials | Evolved 2 slots: Propulsion x1, Utility x1 700 | -9/Materials | Discovered new exit (range 3) 700 | -9/Materials | Identified exit to Materials 870 | -9/Materials | Core integrity fell below 50% 882 | -9/Materials | Entered another Materials area 882 | -8/Materials | Evolved 2 slots: Utility x2 902 | -8/Materials | Lost 7 parts (1p4n2w) 1174 | -8/Materials | Build established: Infiltrator-Mutant 1525 | -8/Materials | Lost 4 parts (1p3n) 1584 | -8/Materials | Discovered new exit (range 8) 1588 | -8/Materials | Identified exit to Factory 1589 | -8/Materials | Entered Factory 1589 | -7/Factory | Evolved 2 slots: Utility x2 1653 | -7/Factory | Discovered new exit (range 16) 1660 | -7/Factory | Identified exit to Lower Caves 1661 | -7/Factory | Entered Lower Caves 1914 | -7/Lower Caves | Found Prototype Device 1914 | -7/Lower Caves | Identified Heart of Steel 1954 | -7/Lower Caves | Build established: Mutant 1967 | -7/Lower Caves | Attracted the attention of an 0b10 checkpoint 1977 | -7/Lower Caves | Discovered new exit (range 11) 1981 | -7/Lower Caves | Identified exit to Lower Caves 1981 | -7/Lower Caves | Entered another Lower Caves area 2014 | -7/Lower Caves | Core integrity fell below 50% 2044 | -7/Lower Caves | Core integrity fell below 20% 2054 | -7/Lower Caves | Destroyed by S-27 Virus with Autogun Last Messages --------------- 01982_ Gravmag System destroyed. 01982_ Imp. Medium Laser destroyed. 01984_ Hover Unit destroyed. 01988_ Gravmag System destroyed. 01992_ Dropped Heart of Steel. 02011_ C-30 ARC bursts open, deploying its payload. 02011_ S-27 Virus unfolds itself. 02013_ Acquired Heart of Steel. 02014_ Imp. Heat Sink destroyed. 02021_ S-27 Virus destroyed. 02036_ Searching scrap... 02036_ Found Arm. Wheel. 02036_ Found Mak. System Shield. 02036_ Found Hvy. Particle Cannon. 02036_ Found Imp. Trap Extractor. 02036_ Found 14 Matter. 02037_ Acquired Mak. System Shield. A strange signal echoes through the caves. 02038_ Acquired 14 matter. 02043_ Structural Scanner destroyed. Map ----- +----------------------------------------------------+ | ?????????????????????????????????????????????????? | | ?????????????????????????????????????????????????? | | ?????????????????????????????????????????????????? | | ?????????????????????????????????????????????????? | | ?????????????????????????????????????????????????? | | ?????????????????????????????????????????????????? | | ?????????????????????????????????????????????????? | | ?????????????????????????????????????????????????? | | ?????????????????????????????????????????????????? | | ?????????????????????????????????????????????????? | | ?????????????????????????????????????????????????? | | ?????????????????????????????????????????????????? | | ?????????????????????????????????????????????????? | | ?????????????????????????????????????????????????? | | ??????????????????????????????###????????????????? | | ??????????????????????????????# ##???????????????? | | ?????????????????????????????? ##??????????????? | | ???????????????????#??????????# ####???????????? | | ???????????????????# ?????????# ???????????? | | ???????????????????# ?????????# ?????????????? | | ??????????????????## ???????## #??????????????? | | ??????????????????# ????### #??????????????? | | ?????????????????## ??## #??????????????? | | ?????????????????# ### #??????????????? | | ??????????????????# ##?????????????? | | ???????????????????# @ s #####?????????? | | ???????????????????# ## ## ## #?????????? | | ??????????????????# ???# ## ## #???#####?# | | ???????????????? ?????# ## ### #??# #?# | | ????????????? ???????# ###### #### ### | | ???????????? #?????????# #????# ### ## | | ???????????? ????????????# #????# ## | | ????????????????????????? ????## | | ????????????????????????? ?????# | | ????????????????????????? ???### | | ?????????????????????????###???# | | ???????????????????????????????# | | ???????????????????????????????## | | ????????????????????????????????## ## | | ?????????????????????????????????# ### !## | | ?????????????????????????????????# ####?# =#??### | | ?????????????????????????????????###????# ]#?????? | | ????????????????????????????????????????# ####### | | ????????????????????????????????????????# | | ????????????????????????????????????????# "" | | ????????????????????????????????????????# """"" | | ????????????????????????????????????????# """" | | ????????????????????????????????????????### " | | ??????????????????????????????????????????# "" "" | | ??????????????????????????????????????????#" """ | +----------------------------------------------------+ Best States ------------- Heat Dissipation 34 Energy Generation 14 Energy Capacity 160 Matter Stores 300 Matter Capacity 300 Sight Range 16 Terrain Scan Density 10 ECM Strength 1 Evasion (%) 63 Defensive Hacking 21 Item Schematics ----------------- Hover Unit | -7/Factory | Scanalyzed Carbon-fiber Leg | -7/Factory | Scanalyzed Robot Schematics ------------------ None Fabricated ------------ Nothing Alien Tech Used ----------------- None Achievements -------------- None Challenges ------------ None Game ------ Seed CombatFlakStabilizer Manual? 0 Play Time 00:26:54 Cumulative 27.2 hours Start 2022.04.28 @ 22:30:07 End 2022.04.28 @ 22:55:50 Sessions 1 Manual Loads 0 Difficulty Rogue Special Mode None Game No. 51 Rogue 51 Adventurer 0 Explorer 0 Win Type - Total 0 Types 0/0/0/0/0/0/0/0/0 Lore% 23 Gallery% 30 Achievement% 24 Wizard Run 0 Options --------- ASCII 0 Keyboard 0 Movement Numpad Keybinds 0 Fullscreen 2 Font 18/SmallcapsGlow Map View 76x50 Tactical HUD 1 Map Filters NONE Filters NONE Steam 1 RUN: 7194a910-aca3-46d7-a5df-fce87e6a5c6f